bitfinex-derivatives/quotes_BTCF0:USTF0_20251215
["timestamp","ask_amount","ask_price","bid_price","bid_amount"]
[1765762513826,0.0673,89134.0,89133.0,0.3608]
[1765762514915,0.0673,89134.0,89133.0,0.43068]
[1765762515116,0.0673,89134.0,89133.0,0.3628]
[1765762515311,0.0673,89134.0,89133.0,0.3658]
[1765762515507,0.03269,89134.0,89133.0,0.43568]
[1765762515716,0.0001676,89142.0,89133.0,0.43568]
[1765762516119,0.0001676,89142.0,89141.0,0.06988]
[1765762516304,0.0001676,89142.0,89141.0,0.43068]
[1765762516504,0.0674676,89142.0,89141.0,0.43068]
[1765762516906,0.0674676,89142.0,89141.0,0.39508]
[1765762517209,0.0674676,89142.0,89141.0,0.3608]
[1765762517405,0.0674676,89142.0,89133.0,0.002]
[1765762517406,0.0673,89134.0,89133.0,0.002]
[1765762517610,0.03269,89134.0,89133.0,0.43168]
[1765762517809,0.0001676,89142.0,89133.0,0.43168]
[1765762517810,0.0328576,89142.0,89141.0,0.06988]
[1765762518008,0.0674676,89142.0,89141.0,0.43068]
[1765762518218,0.0674676,89142.0,89141.0,0.03528]
[1765762518411,0.0674676,89142.0,89141.0,0.001]
[1765762520313,0.0674676,89142.0,89124.0,0.3608]
[1765762520314,0.0673,89126.0,89124.0,0.3608]
[1765762520506,0.0673,89126.0,89112.0,1.5176]
[1765762520507,0.0673,89126.0,89112.0,1.5]
[1765762521021,0.0785208,89113.0,89112.0,1.5]
[1765762521617,0.0785214,89108.0,89107.0,0.36090325]
[1765762522004,0.4393214,89108.0,89107.0,1.50010325]
[1765762522204,0.4393214,89108.0,89107.0,0.00010325]
[1765762522610,0.0785224,89100.0,89099.0,0.00016825]
[1765762522819,0.0112244,89085.0,89069.0,0.0112262]
[1765762523120,0.14437574,89080.0,89070.0,0.3608]
[1765762523318,0.14437574,89080.0,89071.0,1.5]
[1765762523519,0.00012292,89079.0,89071.0,1.5]
[1765762524215,0.0673,89072.0,89071.0,1.5]
[1765762524414,0.0673,89072.0,89070.0,0.3608]
[1765762524415,0.0673,89071.0,89070.0,0.3608]
[1765762524805,0.0785262,89070.0,89069.0,0.007]
[1765762525010,0.0786445,89070.0,89069.0,0.007]
[1765762525215,0.0786445,89070.0,89052.0,0.3608]
[1765762525216,0.0673,89053.0,89052.0,0.3608]
[1765762525515,0.03269,89047.0,89046.0,1.5]
[1765762525713,0.0673,89046.0,89034.0,0.3608]
[1765762526027,0.3608,89041.0,89034.0,0.03428]
[1765762526213,0.3608,89041.0,89040.0,0.09024]
[1765762526520,0.00012104,89041.0,89040.0,0.09024]
[1765762527115,0.00012104,89041.0,89040.0,0.06988]
[1765762527422,0.00016844,89046.0,89045.0,0.06795]
[1765762527717,0.00016844,89046.0,89045.0,0.42875]
[1765762529211,0.00016844,89046.0,89045.0,0.43075]
[1765762530007,0.00016844,89046.0,89045.0,0.42975]
[1765762530207,0.00016844,89046.0,89045.0,0.43275]
[1765762531308,0.00016844,89046.0,89045.0,0.43175]
[1765762533219,0.00016844,89046.0,89045.0,0.43275]
[1765762534127,0.00016844,89046.0,89045.0,0.43075]
[1765762534420,0.13323152,89070.0,89045.0,0.43075]
[1765762534421,0.0112259,89073.0,89061.0,0.06537]
[1765762534612,0.07121,89068.0,89067.0,0.3608]
[1765762534813,0.07121,89068.0,89059.0,0.3608]
[1765762535012,0.07121,89068.0,89060.0,1.5]
[1765762535421,0.07121,89061.0,89060.0,1.5]
[1765762536316,0.001,89068.0,89067.0,0.06537]
[1765762537130,0.00016844,89073.0,89067.0,0.06537]
[1765762537511,0.00016844,89073.0,89067.0,0.42617]
[1765762537826,0.00016844,89073.0,89067.0,0.42717]
[1765762538023,0.00016844,89073.0,89072.0,0.06537]
[1765762538725,0.03551,89068.0,89067.0,0.39458]
[1765762539125,0.03567844,89073.0,89072.0,0.03278]
[1765762539324,0.07121,89068.0,89067.0,0.3608]
[1765762539628,0.07121,89068.0,89067.0,0.39358]
[1765762539920,0.07121,89068.0,89067.0,0.001]
[1765762540621,0.07121,89056.0,89051.0,1.5]
[1765762540823,0.3608,89070.0,89060.0,0.0112274]
[1765762541020,0.4432362,89070.0,89069.0,0.03278]
[1765762541225,0.43201,89070.0,89059.0,0.3608]
[1765762541522,0.07121,89070.0,89060.0,0.0112274]
[1765762541712,0.00016844,89073.0,89067.0,0.42617]
[1765762541713,0.001,89068.0,89067.0,0.42617]
[1765762542331,0.07121,89068.0,89067.0,0.06537]
[1765762542826,0.07121,89068.0,89067.0,0.001]
[1765762543127,0.43201,89068.0,89067.0,0.001]
[1765762543328,0.43201,89068.0,89067.0,0.003]
[1765762543329,0.07121,89068.0,89067.0,0.003]
[1765762543519,0.07121,89068.0,89067.0,0.03578]
[1765762543713,0.07137844,89073.0,89072.0,0.06537]
[1765762543919,0.07137844,89073.0,89067.0,0.003]
[1765762543920,0.07121,89068.0,89067.0,0.001]
[1765762544118,0.07221,89068.0,89067.0,0.001]
[1765762544728,0.07421,89068.0,89062.0,0.0112272]
[1765762544923,0.003,89068.0,89067.0,0.06537]
[1765762545450,0.002,89068.0,89067.0,0.06537]
[1765762545630,0.00016844,89073.0,89072.0,0.06537]
[1765762545930,0.03567844,89073.0,89072.0,0.06537]
[1765762546124,0.07137844,89073.0,89072.0,0.06537]
[1765762546729,0.07137844,89073.0,89072.0,0.03278]
[1765762547426,0.07121,89068.0,89067.0,0.001]
[1765762547623,0.00016844,89073.0,89072.0,0.06537]
[1765762547815,0.03567844,89073.0,89072.0,0.06537]
[1765762548023,0.00016844,89073.0,89072.0,0.06537]
[1765762548327,0.07137844,89073.0,89072.0,0.06537]
[1765762548526,0.07137844,89073.0,89072.0,0.03278]
[1765762548527,0.08260424,89073.0,89072.0,0.03278]
[1765762548733,0.08360424,89073.0,89064.0,0.02099]
[1765762548936,0.3720263,89070.0,89061.0,0.3608]
[1765762549119,0.00116844,89073.0,89072.0,0.06537]
[1765762549325,0.03667844,89073.0,89072.0,0.06537]
[1765762549636,0.07237844,89073.0,89072.0,0.06537]
[1765762550237,0.00116844,89073.0,89072.0,0.06537]
[1765762550421,0.00116844,89073.0,89072.0,0.42617]
[1765762551722,0.00016844,89073.0,89072.0,0.42617]
[1765762552324,0.7068,89083.0,89082.0,0.0765947]
[1765762552532,0.06023048,89090.0,89089.0,0.0974138]
[1765762552837,0.06023048,89095.0,89094.0,0.06537]
[1765762553133,0.70676,89098.0,89097.0,0.06537]
[1765762553332,0.74227,89098.0,89097.0,0.06537]
[1765762554030,0.70676,89098.0,89097.0,0.06537]
[1765762554435,0.03551,89091.0,89090.0,0.4373937]
[1765762554727,0.07121,89091.0,89090.0,0.06537]
[1765762555127,0.70676,89098.0,89090.0,0.06537]
[1765762555128,0.70676,89098.0,89097.0,0.06537]
[1765762555326,0.71076,89098.0,89097.0,0.06537]
[1765762556032,0.70676,89098.0,89097.0,0.06537]
[1765762556727,0.71076,89098.0,89097.0,0.06537]
[1765762557440,0.004,89098.0,89097.0,0.06537]
[1765762557635,0.008,89098.0,89097.0,0.06537]
[1765762558538,0.00016844,89106.0,89094.0,0.372023]
[1765762558834,0.00016844,89106.0,89105.0,0.4400918]
[1765762559628,0.32044,89132.0,89131.0,0.06807]
[1765762559829,0.25052,89132.0,89131.0,0.06807]
[1765762560031,0.32044,89132.0,89131.0,0.06807]
[1765762560939,0.25052,89132.0,89131.0,0.06807]
[1765762561236,0.07008743,89140.0,89139.0,0.03259]
[1765762562345,0.07108743,89140.0,89139.0,0.06807]
[1765762562944,0.07208743,89140.0,89139.0,0.06807]
[1765762563140,0.06992,89137.0,89136.0,0.3608]
[1765762563341,0.06992,89124.0,89123.0,0.00016834]
[1765762565135,0.06992,89114.0,89113.0,0.3608]
[1765762565834,0.67712,89114.0,89113.0,0.3608]
[1765762566540,0.67712,89114.0,89105.0,0.00016834]
[1765762566541,0.06992,89106.0,89105.0,0.00016834]
[1765762566740,0.06992,89106.0,89090.0,0.3608]
[1765762566741,0.03496,89091.0,89090.0,0.3608]
[1765762566941,0.01975,89089.0,89079.0,0.011225]
[1765762567134,0.06992,89086.0,89079.0,0.011225]
[1765762567339,0.06992,89086.0,89085.0,0.42899673]
[1765762567533,0.70632,89098.0,89086.0,0.0112241]
[1765762568038,0.03496,89087.0,89086.0,0.0792941]
[1765762568840,0.70732,89098.0,89097.0,0.06807]
[1765762569539,0.74228,89098.0,89097.0,0.06807]
[1765762569739,0.77724,89098.0,89097.0,0.06807]
[1765762570043,0.06992,89087.0,89086.0,0.005]
[1765762570247,0.70632,89098.0,89097.0,0.06807]
[1765762570545,0.00016834,89101.0,89089.0,0.02105]
[1765762570546,0.00016834,89101.0,89100.0,0.08912]
[1765762570843,0.70644,89124.0,89123.0,0.06807]
[1765762571048,0.70644,89124.0,89123.0,0.42887]
[1765762571342,0.00557643,89134.0,89124.0,0.0112194]
[1765762571543,0.00557643,89134.0,89123.0,0.3608]
[1765762571748,0.08967,89124.0,89123.0,0.3608]
[1765762572547,0.08967,89124.0,89120.0,0.00016834]
[1765762572548,0.06992,89121.0,89120.0,0.00016834]
[1765762574039,0.43072,89121.0,89120.0,0.00216834]
[1765762574241,1.13724,89121.0,89120.0,0.00216834]
[1765762574747,1.13724,89121.0,89120.0,0.00516834]
[1765762577345,1.13724,89121.0,89106.0,0.3608]
[1765762577346,0.06992,89107.0,89106.0,0.3608]
[1765762578343,0.03496,89099.0,89098.0,0.00016834]
[1765762578642,0.7762,89099.0,89098.0,0.00016834]
[1765762578945,0.7874225,89099.0,89098.0,0.00016834]
[1765762579146,0.7874225,89099.0,89089.0,0.3608]
[1765762579147,0.06992,89090.0,89089.0,0.3608]
[1765762580454,0.06992,89086.0,89084.0,0.3608]
[1765762581656,0.43072,89086.0,89081.0,0.00016834]
[1765762582152,0.4419442,89086.0,89081.0,0.00016834]
[1765762582556,0.081146,89071.0,89070.0,0.3608]
[1765762582752,0.787266,89071.0,89070.0,0.3608]
[1765762583144,0.8474191,89071.0,89070.0,0.3608]
[1765762583344,0.787266,89071.0,89070.0,0.3608]
[1765762583651,0.7873598,89071.0,89070.0,0.3638]
[1765762583854,0.7873598,89071.0,89070.0,0.3668]
[1765762584246,0.7761338,89071.0,89070.0,0.3668]
[1765762586354,0.78166031,89071.0,89070.0,0.3668]
[1765762588559,0.78166031,89071.0,89070.0,0.432]
[1765762588943,0.78166031,89071.0,89070.0,0.3668]
[1765762594154,0.78166031,89071.0,89062.0,0.00016834]
[1765762594155,0.0767271,89063.0,89062.0,0.00016834]
[1765762594363,0.0767271,89063.0,89055.0,0.3608]
[1765762594364,0.0968379,89056.0,89055.0,0.3608]
[1765762594563,0.0655,89038.0,89037.0,0.39306]
[1765762594757,0.06562861,89038.0,89037.0,0.3608]
[1765762595059,0.06562861,89038.0,89037.0,0.4372303]
[1765762595060,0.00012861,89038.0,89037.0,0.4372303]
[1765762595250,0.00012861,89038.0,89037.0,0.426]
[1765762595962,0.03231861,89038.0,89037.0,0.426]
[1765762596464,0.00012861,89038.0,89037.0,0.426]
[1765762596963,0.00012861,89038.0,89037.0,0.428]
[1765762597161,0.00012861,89038.0,89037.0,0.43]
[1765762597862,0.06562861,89038.0,89037.0,0.3648]
[1765762598851,0.06562861,89038.0,89037.0,0.43]
[1765762601263,0.06562861,89038.0,89037.0,0.3648]
[1765762601463,0.06562861,89038.0,89037.0,0.43]
[1765762607068,0.77126861,89038.0,89037.0,0.43]
[1765762607270,0.06562861,89038.0,89037.0,0.43]
[1765762607470,0.77126861,89038.0,89037.0,0.43]
[1765762608569,0.77126861,89038.0,89037.0,0.3648]
[1765762609867,0.77126861,89038.0,89037.0,0.43]
[1765762610168,0.77126861,89038.0,89037.0,0.3648]
[1765762610368,0.77126861,89038.0,89037.0,0.39706]
[1765762610558,0.06562861,89038.0,89037.0,0.39706]
[1765762610759,0.77122861,89038.0,89037.0,0.39706]
[1765762611070,0.77122861,89038.0,89037.0,0.43]
[1765762612470,0.77122861,89038.0,89037.0,0.3648]
[1765762612777,0.77122861,89038.0,89037.0,0.004]
[1765762612778,0.7711,89038.0,89037.0,0.004]
[1765762613375,0.7711,89038.0,89029.0,0.0001135]
[1765762613376,0.0655,89030.0,89029.0,0.0001135]
[1765762613577,0.42641304,89030.0,89029.0,0.0001135]
[1765762613779,0.43764424,89030.0,89029.0,0.0001135]
[1765762614663,0.43764424,89030.0,89029.0,0.0031135]
[1765762615467,0.43764424,89030.0,89029.0,0.0051135]
[1765762617581,0.4375312,89030.0,89029.0,0.0051135]
[1765762617783,0.4375312,89030.0,89011.0,0.00014069]
[1765762617784,0.0770635,89012.0,89011.0,0.00014069]
[1765762617974,0.78262514,89012.0,89011.0,0.00014069]
[1765762619085,0.78262514,89012.0,88995.0,0.3608]
[1765762619086,0.0770655,88996.0,88995.0,0.3608]
[1765762619273,0.7825455,88996.0,88995.0,0.3608]
[1765762619670,0.77131,88996.0,88995.0,0.42387]
[1765762619882,0.77139913,88996.0,88995.0,0.42387]
[1765762620380,0.78263463,88996.0,88995.0,0.3608]
[1765762621379,0.78463463,88996.0,88995.0,0.3608]
[1765762621983,0.70756913,88996.0,88995.0,0.42387]
[1765762622286,0.70856913,88996.0,88995.0,0.4351056]
[1765762623275,1.4048,89019.0,89018.0,0.06307]
[1765762623478,1.9284,89019.0,89018.0,0.42387]
[1765762623675,1.9284,89019.0,89007.0,0.372034]
[1765762623874,0.0325,89008.0,89007.0,0.435104]
[1765762624084,1.9284,89019.0,89007.0,0.435104]
[1765762624281,1.9284,89019.0,89018.0,0.06307]
[1765762624585,1.92848393,89019.0,89018.0,0.06307]
[1765762625384,0.06583,89014.0,89013.0,0.0426833]
[1765762625585,0.0325,89014.0,89013.0,0.0743033]
[1765762625785,1.93148393,89019.0,89018.0,0.06307]
[1765762626091,1.93148393,89019.0,89018.0,0.42387]
[1765762626584,0.52668393,89019.0,89018.0,0.42387]
[1765762627189,0.52568393,89019.0,89018.0,0.42387]
[1765762627388,2.38e-06,89020.0,89019.0,0.0743026]
[1765762627696,1.40508,89049.0,89048.0,0.06307]
[1765762628001,0.7494076,89059.0,89058.0,0.06307]
[1765762628180,0.73818,89059.0,89058.0,0.06307]
[1765762628383,0.77160624,89059.0,89058.0,0.06307]
[1765762629388,0.77360624,89059.0,89058.0,0.06307]
[1765762629981,0.06113,89057.0,89056.0,0.4021279]
[1765762630286,0.06113,89057.0,89056.0,0.3909]
[1765762630685,0.06113,89051.0,89050.0,0.03026844]
[1765762630882,0.06122624,89051.0,89050.0,0.00016844]
[1765762631590,0.06122624,89051.0,89050.0,0.03026844]
[1765762631892,0.03011624,89051.0,89050.0,0.06305844]
[1765762632389,0.03011624,89051.0,89050.0,0.06405844]
[1765762633682,0.06122624,89051.0,89050.0,0.00116844]
[1765762634883,0.06122624,89051.0,89050.0,0.03126844]
[1765762635293,0.06122624,89051.0,89050.0,0.06405844]
[1765762635791,0.03011624,89051.0,89050.0,0.06405844]
[1765762635987,9.624e-05,89051.0,89050.0,0.06405844]
[1765762637383,0.03011624,89051.0,89050.0,0.06405844]
[1765762637592,0.06122624,89051.0,89050.0,0.06405844]
[1765762639395,0.06113,89030.0,89029.0,0.3909]
[1765762639694,9.624e-05,89030.0,89029.0,0.42369]
[1765762640081,9.624e-05,89030.0,89029.0,0.82369]
[1765762640982,9.624e-05,89030.0,89029.0,0.83669]
[1765762641185,0.00016845,89038.0,89037.0,0.0741203]
[1765762641401,0.00016845,89038.0,89037.0,0.4349203]
[1765762642599,0.00016845,89038.0,89037.0,0.4409203]
[1765762642793,0.01066859,89041.0,89040.0,0.06289]
[1765762642794,0.00165901,89041.0,89040.0,0.06289]
[1765762643095,0.0112261,89071.0,89067.0,0.06289]
[1765762643296,2.11052,89068.0,89067.0,0.06289]
[1765762643999,0.70584,89068.0,89067.0,0.08168]
[1765762644303,0.70884,89068.0,89067.0,0.08168]
[1765762644492,0.70884,89068.0,89067.0,0.44248]
[1765762645190,0.00016845,89076.0,89067.0,0.44248]
[1765762645498,0.00016845,89076.0,89075.0,0.4349155]
[1765762645885,0.36924,89083.0,89082.0,0.0741147]
[1765762646092,0.36924,89083.0,89082.0,0.4349147]
[1765762646692,0.4311,89083.0,89082.0,0.3608]
[1765762646890,0.4311,89083.0,89067.0,0.001]
[1765762646891,0.0736564,89068.0,89067.0,0.001]
[1765762647090,0.4344564,89068.0,89067.0,0.001]
[1765762647295,0.0736564,89068.0,89067.0,0.001]
[1765762647895,0.06243,89060.0,89059.0,0.00016845]
[1765762648489,0.734827,89064.0,89046.0,0.3608]
[1765762648490,0.06243,89047.0,89046.0,0.3608]
[1765762648704,0.7794991,89047.0,89046.0,0.3608]
[1765762649090,0.7794991,89047.0,89031.0,0.3608]
[1765762649091,0.06243,89032.0,89031.0,0.3608]
[1765762649289,0.06243,89032.0,89025.0,0.3608]
[1765762649290,0.06243,89026.0,89025.0,0.3608]
[1765762650407,0.70604,89031.0,89030.0,0.0605]
[1765762650790,0.00016845,89034.0,89033.0,0.06065]
[1765762651006,0.13856845,89034.0,89033.0,0.42145]
[1765762652006,0.13856845,89034.0,89033.0,0.42445]
[1765762652503,0.13856845,89034.0,89033.0,0.42845]
[1765762653699,0.00016845,89034.0,89033.0,0.42845]
[1765762653894,1.5648,89053.0,89033.0,0.3678]
[1765762654093,1.5648,89053.0,89049.0,0.3608]
[1765762654303,0.06195,89050.0,89049.0,0.3608]
[1765762654494,0.06195,89050.0,89049.0,0.42145]
[1765762654805,0.03206,89050.0,89049.0,0.42145]
[1765762655405,1.5648,89053.0,89052.0,0.06065]
[1765762656395,0.06041282,89056.0,89055.0,0.0718781]
[1765762656592,0.06058127,89058.0,89057.0,0.06065]
[1765762656907,0.06211845,89058.0,89057.0,0.39034]
[1765762657900,0.06311845,89058.0,89057.0,0.39034]
[1765762658301,0.00116845,89058.0,89057.0,0.42145]
[1765762658698,0.06160991,89058.0,89057.0,0.42145]
[1765762659095,0.00116845,89058.0,89057.0,0.42145]
[1765762659299,0.08055483,89074.0,89073.0,0.06065]
[1765762659607,0.0112246,89083.0,89073.0,0.3608]
[1765762660006,0.61874883,89088.0,89073.0,0.3720258]
[1765762660203,0.538194,89088.0,89073.0,0.3720258]
[1765762660400,0.0112244,89084.0,89073.0,0.3720258]
[1765762660602,0.06195,89074.0,89073.0,0.39034]
[1765762661009,0.06195,89074.0,89073.0,0.42145]
[1765762661210,0.0112244,89085.0,89073.0,0.42145]
[1765762661796,0.06195,89074.0,89073.0,0.3608]
[1765762662003,0.06395,89074.0,89073.0,0.3608]
[1765762663109,0.06395,89074.0,89073.0,0.39034]
[1765762663511,0.06195,89074.0,89073.0,0.3608]
[1765762664211,0.06195,89074.0,89073.0,0.42145]
[1765762664405,0.08055483,89084.0,89083.0,0.06065]
[1765762664406,0.03206,89084.0,89083.0,0.06065]
[1765762664608,0.57526,89084.0,89083.0,0.06065]
[1765762665010,0.60515,89084.0,89083.0,0.02954]
[1765762666016,0.06195,89083.0,89082.0,0.3608]
[1765762666315,0.06195,89074.0,89073.0,0.3608]
[1765762667508,0.06295,89074.0,89073.0,0.3608]
[1765762667706,0.0731758,89073.0,89072.0,0.00016845]
[1765762669010,0.06195,89073.0,89072.0,0.06081845]
[1765762669211,0.06195,89073.0,89072.0,0.02970845]
[1765762669803,0.06395,89073.0,89072.0,0.00016845]
[1765762670106,0.03506,89073.0,89072.0,0.07204435]
[1765762670308,0.003,89073.0,89072.0,0.43284435]
[1765762670613,0.003,89073.0,89072.0,0.42161845]
[1765762671118,0.03506,89073.0,89072.0,0.42161845]
[1765762671313,0.03406,89073.0,89072.0,0.42161845]
[1765762671520,0.03206,89073.0,89072.0,0.42161845]
[1765762671707,0.0112244,89085.0,89073.0,0.0112258]
[1765762672017,0.45904483,89088.0,89072.0,0.36096845]
[1765762672219,0.03206,89081.0,89080.0,0.42145]
[1765762672411,0.03206,89081.0,89080.0,0.06065]
[1765762672711,0.06195,89081.0,89080.0,0.06065]
[1765762673319,0.06195,89081.0,89080.0,0.02954]
[1765762673520,0.37849,89088.0,89072.0,0.06081845]
[1765762673521,0.06195,89073.0,89072.0,0.06081845]
[1765762673709,0.06195,89073.0,89072.0,0.00016845]
[1765762674016,0.06195,89073.0,89072.0,0.02970845]
[1765762674221,0.01769,89078.0,89077.0,0.06065]
[1765762674222,0.03206,89078.0,89077.0,0.06065]
[1765762674914,0.08447258,89081.0,89080.0,0.06065]
[1765762675218,0.14442258,89081.0,89080.0,0.06065]
[1765762676219,0.06195,89081.0,89080.0,0.06065]
[1765762677108,0.14342381,89081.0,89080.0,0.06065]
[1765762677309,0.06395,89081.0,89080.0,0.06065]
[1765762677714,0.06295,89081.0,89080.0,0.06065]
[1765762678219,0.002,89081.0,89080.0,0.06065]
[1765762679211,0.0623477,89081.0,89080.0,0.06065]
[1765762679516,0.0613477,89081.0,89080.0,0.06065]
[1765762679720,0.001,89081.0,89080.0,0.06065]
[1765762680718,0.0613477,89081.0,89080.0,0.06065]
[1765762681110,0.001,89081.0,89080.0,0.06065]
[1765762681307,0.06061,89080.0,89079.0,0.3608]
[1765762681511,0.0718349,89080.0,89079.0,0.3608]
[1765762681707,0.06061,89080.0,89079.0,0.431495]
[1765762681912,0.001,89081.0,89080.0,0.07823]
[1765762682308,0.06161,89081.0,89080.0,0.05947]
[1765762682522,0.14114335,89081.0,89080.0,0.05947]
[1765762682820,0.14114335,89081.0,89080.0,0.02994]
[1765762683019,0.07788,89080.0,89079.0,0.3608]
[1765762683219,0.07788,89080.0,89079.0,0.39074]
[1765762683421,0.06061,89080.0,89079.0,0.42027]
[1765762683617,0.001,89081.0,89080.0,0.0894549]
[1765762684514,0.06146544,89081.0,89080.0,0.0894549]
[1765762684720,0.05494859,89085.0,89084.0,0.0706944]
[1765762684918,0.70532,89088.0,89087.0,0.05947]
[1765762685120,0.70532,89088.0,89087.0,0.42027]
[1765762685518,0.00016845,89089.0,89088.0,0.0706939]
[1765762685919,0.08053335,89103.0,89102.0,0.05947]
[1765762686118,0.70196,89106.0,89105.0,0.0706918]
[1765762686429,0.08053335,89117.0,89116.0,0.05947]
[1765762686613,0.08053335,89118.0,89116.0,0.05947]
[1765762686818,0.06061,89118.0,89117.0,0.05947]
[1765762687123,0.08053335,89119.0,89118.0,0.0706901]
[1765762687327,0.7054,89123.0,89122.0,0.05947]
[1765762687623,0.76601,89123.0,89122.0,0.05947]
[1765762687830,0.76601,89123.0,89122.0,0.02994]
[1765762689228,0.76601,89123.0,89114.0,0.42027]
[1765762689229,0.06061,89115.0,89114.0,0.42027]
[1765762689620,0.02946,89115.0,89114.0,0.42027]
[1765762689828,0.07788,89122.0,89121.0,0.02994]
[1765762690017,0.02946,89115.0,89114.0,0.42027]
[1765762690219,0.02946,89122.0,89121.0,0.02953]
[1765762690420,0.02946,89122.0,89121.0,0.05947]
[1765762690620,0.06061,89122.0,89121.0,0.05947]
[1765762691528,0.02946,89122.0,89121.0,0.05947]
[1765762691730,0.06061,89122.0,89121.0,0.05947]
[1765762692331,0.06161,89122.0,89121.0,0.05947]
[1765762692634,0.06161,89122.0,89114.0,0.3720206]
[1765762692635,0.06061,89115.0,89114.0,0.42027]
[1765762692836,0.06161,89122.0,89121.0,0.02994]
[1765762693228,0.06061,89115.0,89114.0,0.3608]
[1765762693825,0.06061,89109.0,89108.0,0.05963834]
[1765762694231,0.002,89122.0,89121.0,0.05947]
[1765762695225,0.06261,89122.0,89121.0,0.05947]
[1765762695736,0.002,89122.0,89121.0,0.05947]
[1765762695937,0.002,89122.0,89121.0,0.42027]
[1765762696236,0.7054,89123.0,89122.0,0.0706896]
[1765762696433,0.70508,89142.0,89125.0,0.05947]
[1765762696838,0.0112175,89139.0,89125.0,0.05947]
[1765762697339,0.011218,89135.0,89125.0,0.05947]
[1765762697637,0.06077834,89126.0,89125.0,0.05947]
[1765762697834,0.06077834,89126.0,89125.0,1.55947]
[1765762698035,0.02962834,89126.0,89125.0,1.56047]
[1765762698429,0.00016834,89126.0,89125.0,1.56047]
[1765762699438,0.00016834,89126.0,89125.0,1.55947]
[1765762699832,0.00016834,89126.0,89125.0,1.56147]
[1765762700840,0.00016834,89126.0,89125.0,1.56247]
[1765762701043,0.70508,89142.0,89136.0,0.05947]
[1765762701441,0.70508,89142.0,89141.0,0.05947]
[1765762701639,0.06061,89135.0,89134.0,0.05947]
[1765762701937,0.01727,89140.0,89127.0,0.09306575]
[1765762701938,0.06061,89128.0,89127.0,0.09306575]
[1765762702140,0.06061,89138.0,89137.0,0.05947]
[1765762702526,0.02946,89138.0,89137.0,0.05947]
[1765762702734,0.76569,89142.0,89141.0,0.05947]
[1765762703230,0.01677418,89148.0,89133.0,0.42027]
[1765762703231,0.00555768,89148.0,89133.0,0.42027]
[1765762703429,0.41388,89155.0,89142.0,0.05947]
[1765762703642,0.41388,89155.0,89141.0,0.3608]
[1765762703643,0.41388,89155.0,89154.0,0.05947]
[1765762704145,0.47449,89155.0,89154.0,0.05947]
[1765762704341,0.44334,89155.0,89154.0,0.05947]
[1765762704738,0.06061,89147.0,89146.0,0.07085475]
[1765762704937,0.06061,89147.0,89146.0,0.03010825]
[1765762705336,0.53462481,89155.0,89154.0,0.02994]
[1765762705530,0.53462481,89155.0,89154.0,0.05947]
[1765762705531,0.47449,89155.0,89154.0,0.05947]
[1765762705940,0.44334,89155.0,89154.0,0.05947]
[1765762706343,0.47449,89155.0,89154.0,0.05947]
[1765762706543,0.07661,89150.0,89149.0,0.3608]
[1765762706739,0.05886,89150.0,89149.0,0.06025]
[1765762707137,0.42088,89155.0,89146.0,0.00016825]
[1765762707138,0.44929,89155.0,89154.0,0.06025]
[1765762707340,0.42088,89155.0,89154.0,0.06025]
[1765762707534,0.41688,89155.0,89154.0,0.06025]
[1765762707738,0.003,89155.0,89154.0,0.06025]
[1765762708134,0.00011183,89163.0,89162.0,0.0720046]
[1765762708439,0.06013481,89183.0,89180.0,0.0886223]
[1765762708633,0.06013481,89187.0,89186.0,0.0598]
[1765762708836,0.05763,89187.0,89186.0,0.0598]
[1765762709447,0.02921,89187.0,89186.0,0.0598]
[1765762709745,0.3608,89198.0,89193.0,0.0598]
[1765762709746,0.089313,89194.0,89193.0,0.0598]
[1765762709939,0.060103,89196.0,89195.0,0.0598]
[1765762710133,0.060103,89196.0,89194.0,0.0112105]
[1765762710134,0.060103,89208.0,89207.0,0.0598]
[1765762710342,0.02921,89212.0,89211.0,0.0598]
[1765762710558,0.3608,89217.0,89216.0,0.0598]
[1765762710743,0.70476,89228.0,89227.0,0.0598]
[1765762710939,0.060103,89241.0,89227.0,0.0598]
[1765762711141,0.7048,89242.0,89230.0,0.19512017]
[1765762711344,0.060103,89250.0,89241.0,0.0598]
[1765762711543,0.060103,89250.0,89249.0,0.0598]
[1765762711544,0.089313,89250.0,89249.0,0.0598]
[1765762711740,0.05763,89253.0,89252.0,0.0302]
[1765762712040,0.05763,89253.0,89237.0,0.00016814]
[1765762712241,0.060103,89256.0,89255.0,0.0598]
[1765762712442,0.05763,89256.0,89255.0,0.0598]
[1765762712754,0.01754,89268.0,89255.0,0.0598]
[1765762712936,0.04458779,89276.0,89256.0,0.01761]
[1765762713142,0.3608,89276.0,89275.0,0.0598]
[1765762713450,0.05763,89258.0,89257.0,0.00016804]
[1765762713758,0.76255,89258.0,89257.0,0.05996804]
[1765762713941,0.007,89268.0,89267.0,0.0598]
[1765762714949,0.007,89268.0,89259.0,0.01114523]
[1765762714950,0.00167427,89310.0,89287.0,0.0598]
[1765762715149,0.35612,89299.0,89287.0,0.0598]
[1765762715953,0.0111942,89325.0,89287.0,0.0598]
[1765762715954,1.40252,89346.0,89327.0,0.0598]
[1765762716143,0.31208,89337.0,89331.0,0.0598]
[1765762716340,0.00167427,89329.0,89320.0,0.21273017]
[1765762716545,0.00167427,89329.0,89328.0,0.0598]
[1765762716844,0.00167427,89329.0,89325.0,0.00016791]
[1765762716845,0.04211479,89326.0,89325.0,0.00016791]
[1765762717445,0.05763,89326.0,89325.0,0.00016791]
[1765762717647,0.00167427,89329.0,89306.0,0.01757]
[1765762717851,0.147,89331.0,89306.0,0.01757]
[1765762717852,0.00167427,89328.0,89306.0,0.01757]
[1765762718063,0.1,89326.0,89310.0,0.19512017]
[1765762718359,0.1,89326.0,89306.0,0.01757]
[1765762718552,0.00016678,89325.0,89307.0,0.00016791]
[1765762718952,0.05763,89308.0,89307.0,0.00016791]
[1765762719155,0.0111966,89306.0,89263.0,0.0112019]